fUST/lending_fUST_20250826
["ID","MTS","AMOUNT","RATE_DAILY","PERIOD"]
[381442312,1756199438075,-168.0,0.0003756,2]
[381442313,1756199438085,-168.0,0.00037665,2]
[381442314,1756199438095,-160.0,0.00037928,3]
[381442315,1756199438105,-168.0,0.00038168,7]
[381442316,1756199438116,-168.0,0.00038226,2]
[381442317,1756199438126,-720.0,0.00038246,20]
[381442318,1756199438135,-168.0,0.00038549,2]
[381442319,1756199438145,-168.0,0.00038568,2]
[381442320,1756199438155,-168.0,0.00038756,120]
[381442321,1756199438165,-3000.0,0.00038826,7]
[381442322,1756199438175,-168.0,0.00038848,2]
[381442323,1756199438185,-168.0,0.00038923,2]
[381442324,1756199438195,-168.0,0.00038931,2]
[381442325,1756199438205,-500.0,0.00038941,14]
[381442326,1756199438216,-168.0,0.00038942,7]
[381442327,1756199438232,-172.3145046,0.00039025,2]
[381442328,1756199438247,-207.677,0.00039097,2]
[381442329,1756199438257,-222.323,0.00039097,2]
[381442330,1756199438267,-204.131,0.00039125,2]
[381442331,1756199438277,-257.299,0.00039125,2]
[381442332,1756199438288,-261.649,0.00039125,2]
[381442333,1756199438297,-220.13,0.00039125,2]
[381442334,1756199438308,-168.0,0.00039201,7]
[381442335,1756199438318,-500.0,0.00039215,14]
[381442336,1756199438333,-800.0,0.00039405,7]
[381442337,1756199438343,-151.0,0.00039451,7]
[381442338,1756199438606,-800.0,0.00039451,7]
[381442339,1756199438616,-500.0,0.00039489,14]
[381442340,1756199438625,-224.0,0.0003951,5]
[381442341,1756199438634,-4000.0,0.00039528,7]
[381442342,1756199438644,-217.18350301,0.00039528,7]
[381442343,1756199438653,-160.0,0.00039528,7]
[381442344,1756199438662,-718.93305785,0.00039602,2]
[381442345,1756199438671,-800.0,0.00039607,7]
[381442346,1756199438681,-168.0,0.00039631,7]
[381442347,1756199438691,-168.0,0.00039685,2]
[381442348,1756199438700,-500.0,0.00039702,7]
[381442349,1756199438709,-151.0,0.00039725,7]
[381442350,1756199438718,-500.0,0.00039763,14]
[381442351,1756199438728,-168.0,0.00039928,2]
[381442352,1756199438737,-190.0,0.00039937,7]
[381442353,1756199438746,-198.0,0.00039999,7]
[381442354,1756199438756,-500.0,0.00040037,14]
[381442355,1756199438766,-168.0,0.00040044,2]
[381442356,1756199438776,-800.0,0.00040081,30]
[381442357,1756199438786,-974.0,0.00040125,2]
[381442358,1756199438796,-2156.0,0.00040125,2]
[381442359,1756199438805,-638.0,0.00040125,2]
[381442360,1756199438814,-151.0,0.00040163,30]
[381442361,1756199438824,-151.0,0.00040163,30]
[381442362,1756199438833,-151.0,0.00040163,30]
[381442363,1756199438842,-500.0,0.00040213,30]
[381442364,1756199438851,-800.0,0.00040273,7]
[381442365,1756199438860,-500.0,0.00040311,14]
[381442366,1756199438869,-151.0,0.00040437,30]
[381442367,1756199438879,-718.93305778,0.00040545,28]
[381442368,1756199438888,-500.0,0.00040585,14]
[381442369,1756199438897,-500.0,0.00040602,5]
[381442370,1756199438907,-500.0,0.00040743,30]
[381442371,1756199438917,-1030.65,0.000408,120]
[381442372,1756199438926,-500.0,0.00040859,14]
[381442373,1756199438935,-500.0,0.0004091,30]
[381442374,1756199438947,-500.0,0.00040921,30]
[381442375,1756199438957,-500.0,0.00040926,30]
[381442376,1756199438966,-500.0,0.00040954,30]
[381442377,1756199438975,-847.04,0.00040958,10]
[381442378,1756199438985,-705.86,0.00040958,10]
[381442379,1756199438994,-588.22,0.00040958,10]
[381442380,1756199439003,-490.18,0.00040958,10]
[381442381,1756199439013,-270.88,0.00040964,3]
[381442382,1756199439022,-812.66,0.00040964,3]
[381442383,1756199439032,-541.75,0.00040965,3]
[381442384,1756199439041,-500.0,0.00040967,31]
[381442385,1756199439051,-500.0,0.00040967,31]
[381442386,1756199439062,-500.0,0.00040967,31]
[381442387,1756199439073,-500.0,0.00040967,31]
[381442388,1756199439082,-500.0,0.00040967,31]
[381442389,1756199439092,-500.0,0.00040967,31]
[381442390,1756199439101,-500.0,0.00040967,31]
[381442391,1756199439111,-297.36551567,0.00040967,31]
[381442392,1756199439124,-500.0,0.00040967,31]
[381442393,1756199439134,-500.0,0.00040967,31]
[381442394,1756199439143,-500.0,0.00040967,31]
[381442395,1756199439152,-500.0,0.00040967,31]
[381442396,1756199439163,-500.0,0.00040967,31]
[381442397,1756199439173,-500.0,0.00040967,31]
[381442398,1756199439183,-500.0,0.00040967,31]
[381442399,1756199439193,-500.0,0.00040967,31]
[381442400,1756199439204,-500.0,0.00040967,31]
[381442401,1756199439215,-500.0,0.00040967,31]
[381442402,1756199439230,-500.0,0.00040967,31]
[381442403,1756199439241,-500.0,0.00040967,31]
[381442404,1756199439250,-573.22794925,0.00040967,2]
[381442405,1756199439261,-315.0,0.00040967,31]
[381442406,1756199439272,-450.09621027,0.00040967,31]
[381442407,1756199439288,-500.0,0.00040967,7]
[381442408,1756199439299,-500.0,0.00040967,31]
[381442409,1756199439310,-471.10775362,0.00040967,7]
[381442410,1756199439319,-500.0,0.00040967,31]
[381442411,1756199439329,-500.0,0.00040967,31]
[381442412,1756199439339,-191.41605319,0.00040967,31]
[381442413,1756199439349,-500.0,0.00040967,31]
[381442414,1756199439359,-500.0,0.00040967,31]
[381442415,1756199439368,-500.0,0.00040967,31]
[381442416,1756199439377,-259.60451158,0.00040967,31]
[381442417,1756199439387,-500.0,0.00040967,31]
[381442418,1756199439396,-500.0,0.00040967,31]
[381442419,1756199439405,-500.0,0.00040967,31]
[381442421,1756199439415,-500.0,0.00040967,31]
[381442422,1756199439424,-40920.7417256,0.00040968,3]
[381442423,1756199439478,-5628.8639964,0.00040968,3]
[381442424,1756199439489,-5480.84307044,0.00040968,3]
[381442561,1756199442122,161.57311,0.00013699,2]
[381442835,1756199445992,-161.57311,0.0002911,2]
[381442838,1756199446002,-152.50331541,0.00039507,2]
[381442841,1756199446012,-889.94736841,0.0004087,2]
[381442843,1756199446021,-889.94736837,0.00040876,2]
[381442846,1756199446032,-5310.11908808,0.00040968,3]
[381442870,1756199449076,-354.55563415,0.00040968,3]
[381442876,1756199498252,9838.43689,0.000282,2]
[381442877,1756199498273,161.56311,0.000282,2]
[381442878,1756199542135,208.62209373,0.000199,2]
[381442879,1756199704274,363.85958723,0.000253,2]
[381442880,1756199713272,208.62209373,0.000199,2]
[381442881,1756199754668,683.0,0.000282,2]
[381442883,1756199800117,356.0,0.000282,2]
[381442886,1756199962865,-150.56,0.00028205,2]
[381442890,1756200495385,161.57311,0.00013699,2]
[381442924,1756200632245,-160.0,0.00031702,2]
[381442926,1756200632255,-400.0,0.00031941,2]
[381442929,1756200632267,-161.0,0.00031941,3]
[381442931,1756200632279,-183.43568617,0.00031941,3]
[381442932,1756200632293,-552.74551241,0.00031941,3]
[381442977,1756200638066,-266.9869136,0.00031941,3]
[381442980,1756200638079,-291.300155,0.00031941,3]
[381442985,1756200638123,-305.53173282,0.00031941,3]
[381442987,1756200638133,-808.5,0.00031942,3]
[381442989,1756200638144,-404.25,0.00031942,3]
[381442992,1756200638154,-202.13,0.00031942,3]
[381442994,1756200638165,-606.4,0.00031942,3]
[381442996,1756200638178,-500.0,0.00031951,2]
[381442998,1756200638188,-500.0,0.00031951,2]
[381443000,1756200638199,-500.0,0.00031951,2]
[381443002,1756200638209,-500.0,0.00031951,2]
[381443005,1756200638221,-208.15586097,0.00031951,2]
[381443007,1756200638231,-500.0,0.00031951,2]
[381443009,1756200638243,-387.46701846,0.00031951,2]
[381443011,1756200638254,-500.0,0.00031951,2]
[381443013,1756200638265,-500.0,0.00031951,2]
[381443015,1756200638276,-500.0,0.00031951,2]
[381443017,1756200638287,-500.0,0.00031951,2]
[381443020,1756200638297,-500.0,0.00031951,2]
[381443022,1756200638308,-500.0,0.00031951,2]
[381443024,1756200638318,-500.0,0.00031951,2]
[381443026,1756200638329,-500.0,0.00031951,2]
[381443028,1756200638339,-500.0,0.00031951,2]
[381443030,1756200638350,-500.0,0.00031951,2]
[381443032,1756200638360,-500.0,0.00031951,2]
[381443034,1756200638370,-500.0,0.00031951,2]
[381443036,1756200638381,-500.0,0.00031951,2]
[381443039,1756200638392,-500.0,0.00031951,2]
[381443041,1756200638402,-193.73495346,0.00031951,2]
[381443043,1756200638413,-500.0,0.00031951,2]
[381443045,1756200638426,-500.0,0.00031951,2]
[381443047,1756200638437,-500.0,0.00031951,2]
[381443049,1756200638447,-500.0,0.00031951,2]
[381443051,1756200638458,-500.0,0.00031951,2]
[381443053,1756200638469,-500.0,0.00031951,2]
[381443055,1756200638479,-500.0,0.00031951,2]
[381443057,1756200638490,-500.0,0.00031951,2]
[381443059,1756200638500,-215.08789698,0.00031951,2]
[381443062,1756200638511,-500.0,0.00031951,2]
[381443064,1756200638523,-500.0,0.00031951,2]
[381443065,1756200638537,-500.0,0.00031951,2]
[381443066,1756200638547,-500.0,0.00031951,2]
[381443067,1756200638557,-500.0,0.00031951,2]
[381443068,1756200638567,-300.0,0.00031951,2]
[381443069,1756200638576,-500.0,0.00031951,2]
[381443070,1756200638586,-500.0,0.00031951,2]
[381443071,1756200638595,-188.307466,0.00031951,2]
[381443072,1756200638605,-462.70749203,0.00031951,2]
[381443073,1756200638614,-500.0,0.00031951,2]
[381443074,1756200638623,-154.75658686,0.00031951,2]
[381443075,1756200638632,-500.0,0.00031951,2]
[381443076,1756200638642,-74671.3498203,0.00031952,20]
[381443316,1756200643265,-18297.9333813,0.00031951,2]
[381443330,1756200646302,-601.49,0.00031942,10]
[381443331,1756200646312,-6139.51000001,0.00031951,2]
[381443335,1756200660275,209.89621954,0.00025205,2]
[381443336,1756200699336,-150.0,0.00031942,10]
[381443337,1756200754910,204.17133026,0.000199,2]
[381443338,1756200929103,204.17133022,0.000199,2]
[381443339,1756201052428,3000.0,0.000199,2]
[381443340,1756201100185,204.17133022,0.000199,2]
[381443341,1756201270675,204.17133022,0.000199,2]
[381443342,1756201412428,161.57311,0.00013699,2]
[381443343,1756201440800,204.17133022,0.000199,2]
[381443344,1756201613345,204.17133022,0.000199,2]
[381443380,1756201835856,-290.876746,0.00030321,2]
[381443381,1756201835866,-2998.3364867,0.00030689,2]
[381443382,1756201835875,-568.079547,0.0003081,120]
[381443384,1756201836091,-565.65622562,0.0003152,2]
[381443385,1756201836101,-137.63382524,0.000316,2]
[381443386,1756201836112,-33.33528956,0.000316,2]
[381443387,1756201836122,-170.9691148,0.000316,2]
[381443388,1756201836132,-1600.0,0.00031615,3]
[381443389,1756201836141,-400.0,0.00031616,2]
[381443390,1756201836150,-300.0,0.00031616,3]
[381443391,1756201836159,-300.0,0.00031616,3]
[381443392,1756201836168,-1600.0,0.00031617,3]
[381443393,1756201836177,-599.26147035,0.0003162,2]
[381443394,1756201836188,-8527.11475532,0.0003162,2]
[381443395,1756201836199,-2825.1808887,0.0003162,2]
[381443396,1756201836211,-614.01773707,0.0003162,2]
[381443397,1756201836223,-138.86312782,0.0003162,2]
[381443398,1756201836232,-232.53539143,0.00031627,2]
[381443399,1756201836241,-160.0,0.00031627,2]
[381443400,1756201836250,-160.0,0.00031627,2]
[381443401,1756201836260,-788.73414169,0.00031853,2]
[381443402,1756201836269,-5503.53331423,0.00031853,2]
[381443403,1756201836279,-622.93,0.00031907,10]
[381443404,1756201836288,-500.0,0.00031916,2]
[381443405,1756201836298,-183.86184299,0.00031916,2]
[381443406,1756201836307,-500.0,0.00031916,2]
[381443407,1756201836318,-457.21506832,0.00031916,2]
[381443408,1756201836327,-500.0,0.00031916,2]
[381443409,1756201836337,-500.0,0.00031916,2]
[381443410,1756201836346,-500.0,0.00031916,2]
[381443411,1756201836355,-500.0,0.00031916,2]
[381443412,1756201836364,-500.0,0.00031916,2]
[381443413,1756201836374,-500.0,0.00031916,2]
[381443414,1756201836384,-500.0,0.00031916,2]
[381443415,1756201836394,-500.0,0.00031916,2]
[381443416,1756201836402,-500.0,0.00031916,2]
[381443417,1756201836412,-500.0,0.00031916,2]
[381443418,1756201836421,-500.0,0.00031916,2]
[381443419,1756201836430,-627.92536081,0.00031916,2]
[381443420,1756201836439,-500.0,0.00031916,2]
[381443421,1756201836449,-500.0,0.00031916,2]
[381443422,1756201836458,-500.0,0.00031916,2]
[381443423,1756201836467,-500.0,0.00031916,2]
[381443424,1756201836476,-500.0,0.00031916,2]
[381443425,1756201836486,-350.31000997,0.00031916,2]
[381443426,1756201836495,-500.0,0.00031916,2]
[381443427,1756201836504,-500.0,0.00031916,2]
[381443429,1756201836513,-500.0,0.00031916,2]
[381443431,1756201836523,-269.65659613,0.00031916,2]
[381443432,1756201836532,-500.0,0.00031916,2]
[381443433,1756201836541,-500.0,0.00031916,2]
[381443434,1756201836551,-461.85893494,0.00031916,2]
[381443435,1756201836560,-500.0,0.00031916,2]
[381443436,1756201836569,-500.0,0.00031916,2]
[381443437,1756201836578,-500.0,0.00031916,2]
[381443438,1756201836588,-500.0,0.00031916,2]
[381443439,1756201836597,-500.0,0.00031916,2]
[381443440,1756201836606,-500.0,0.00031916,2]
[381443441,1756201836616,-500.0,0.00031916,2]
[381443442,1756201836624,-500.0,0.00031916,2]
[381443443,1756201836634,-500.0,0.00031916,2]
[381443444,1756201836643,-357.3993262,0.00031916,2]
[381443445,1756201836652,-500.0,0.00031916,2]
[381443446,1756201836661,-500.0,0.00031916,2]
[381443447,1756201836671,-500.0,0.00031916,2]
[381443448,1756201836680,-406.64279374,0.00031916,2]
[381443449,1756201836690,-500.0,0.00031916,2]
[381443450,1756201836699,-229.65,0.00031916,2]
[381443451,1756201836709,-500.0,0.00031916,2]
[381443452,1756201836719,-291.4050897,0.00031916,2]
[381443453,1756201836731,-208.5949103,0.00031916,2]
[381443454,1756201836740,-46.97752761,0.00031916,2]
[381443455,1756201836752,-453.02247239,0.00031916,2]
[381443456,1756201836761,-500.0,0.00031916,2]
[381443457,1756201836770,-30.93873956,0.00031916,2]
[381443458,1756201838316,-519.11,0.00031906,10]
[381443459,1756201838327,-469.06126044,0.00031916,2]
[381443460,1756201838336,-500.0,0.00031917,2]
[381443461,1756201838345,-5120.56144132,0.00031918,2]
[381443462,1756201838392,-3375.01740003,0.00031918,2]
[381443463,1756201838403,-2185.73455985,0.00031918,2]
[381443464,1756201838414,-20002.6044868,0.00031918,2]
[381443465,1756201838423,-179.33548377,0.00031935,2]
[381443466,1756201838433,-471.62,0.00031944,3]
[381443467,1756201838442,-235.81,0.00031944,3]
[381443468,1756201838451,-707.47,0.00031944,3]
[381443469,1756201838460,-500.0,0.00031952,2]
[381443470,1756201838469,-500.0,0.00031952,2]
[381443471,1756201838479,-500.0,0.00031952,2]
[381443472,1756201838488,-500.0,0.00031952,2]
[381443473,1756201838497,-500.0,0.00031952,2]
[381443474,1756201838506,-500.0,0.00031952,2]
[381443475,1756201838515,-500.0,0.00031952,2]
[381443476,1756201838524,-500.0,0.00031952,2]
[381443477,1756201838533,-500.0,0.00031952,2]
[381443478,1756201838544,-521.22691292,0.00031952,2]
[381443479,1756201838553,-500.0,0.00031952,2]
[381443480,1756201838562,-500.0,0.00031952,2]
[381443481,1756201838571,-500.0,0.00031952,2]
[381443482,1756201838580,-350.0,0.00031952,2]
[381443483,1756201838590,-608347.59683628,0.00031953,20]
[381443484,1756201838601,-88568.96046416,0.00031953,20]
[381443485,1756201838619,-9796.71474661,0.00031953,20]
[381443486,1756201838631,-418.91448577,0.00031953,20]
[381443581,1756201846777,-1438.19252463,0.00031953,20]
[381443717,1756201955533,217.88237144,0.000199,2]
[381443718,1756202119649,217.88237142,0.000199,2]
[381443719,1756202289495,217.88237142,0.000199,2]
[381443721,1756202460236,217.88237142,0.000199,2]
[381443722,1756202505924,161.57311,0.00013699,2]
[381443786,1756203038472,-156.19886906,0.00030407,2]
[381443787,1756203038482,-200.0,0.00030484,15]
[381443788,1756203038492,-614.5286206,0.00030506,2]
[381443789,1756203038502,-426.05966,0.00030506,120]
[381443790,1756203038511,-290.876747,0.00030506,2]
[381443791,1756203038520,-666.0,0.00030526,2]
[381443792,1756203038529,-494.9491974,0.00031831,2]
[381443793,1756203038538,-525.82276112,0.00031847,2]
[381443794,1756203038547,-21.83072604,0.00031913,2]
[381443795,1756203038559,-138.16927396,0.00031913,2]
[381443796,1756203038568,-138.72676121,0.00031913,2]
[381443797,1756203038595,-21.27323879,0.00031913,2]
[381443798,1756203038604,-13377.12111777,0.00031928,2]
[381443799,1756203038618,-2005.41486483,0.00031928,2]
[381443800,1756203038630,-1803.78344563,0.00031928,2]
[381443801,1756203038641,-32813.68057177,0.00031928,2]
[381443802,1756203038650,-1600.0,0.00031928,3]
[381443803,1756203038660,-500.0,0.00031929,2]
[381443804,1756203038670,-500.0,0.00031929,2]
[381443805,1756203038679,-414.84295965,0.00031929,2]
[381443806,1756203038688,-500.0,0.00031929,2]
[381443807,1756203038698,-376.26211122,0.00031929,2]
[381443808,1756203038707,-500.0,0.00031929,2]
[381443809,1756203038716,-500.0,0.00031929,2]
[381443810,1756203038726,-458.92912777,0.00031929,2]
[381443811,1756203038735,-500.0,0.00031929,2]
[381443812,1756203038745,-235.35,0.00031929,2]
[381443813,1756203038754,-261.28254002,0.00031929,2]
[381443814,1756203038763,-500.0,0.00031929,2]
[381443815,1756203038773,-500.0,0.00031929,2]
[381443816,1756203038782,-500.0,0.00031929,2]
[381443817,1756203038792,-500.0,0.00031929,2]
[381443818,1756203038801,-500.0,0.00031929,2]
[381443819,1756203038811,-500.0,0.00031929,2]
[381443820,1756203038820,-500.0,0.00031929,2]
[381443821,1756203038830,-500.0,0.00031929,2]
[381443822,1756203038839,-500.0,0.00031929,2]
[381443823,1756203038849,-400.0,0.00031929,3]
[381443824,1756203038859,-400.0,0.00031929,2]
[381443825,1756203038868,-400.0,0.00031929,3]
[381443826,1756203038877,-400.0,0.00031929,3]
[381443827,1756203038886,-400.0,0.00031929,3]
[381443828,1756203038896,-29149.7219936,0.00031931,2]
[381443829,1756203038904,-1600.0,0.00031936,3]
[381443830,1756203038914,-432.59,0.00031937,10]
[381443831,1756203038924,-360.49,0.00031937,10]
[381443832,1756203038934,-235.81,0.0003194,3]
[381443833,1756203038943,-707.43,0.0003194,3]
[381443834,1756203038953,-29149.7219936,0.00031941,2]
[381443835,1756203038962,-500.0,0.00031946,2]
[381443836,1756203038971,-500.0,0.00031946,2]
[381443837,1756203038981,-500.0,0.00031946,2]
[381443838,1756203038990,-500.0,0.00031946,2]
[381443839,1756203038999,-500.0,0.00031946,2]
[381443840,1756203039009,-500.0,0.00031946,2]
[381443841,1756203039018,-500.0,0.00031946,2]
[381443842,1756203039028,-500.0,0.00031946,2]
[381443843,1756203039037,-500.0,0.00031946,2]
[381443844,1756203039047,-459.85883904,0.00031946,2]
[381443845,1756203039057,-500.0,0.00031946,2]
[381443846,1756203039066,-500.0,0.00031946,2]
[381443847,1756203039075,-114250.41168119,0.00031947,20]
[381443848,1756203039084,-5980.15968823,0.00031947,7]
[381443849,1756203039094,-858.77630464,0.00031947,30]
[381443850,1756203039104,-49857.30073436,0.00031947,2]
[381443851,1756203039113,-1189.90614119,0.00031947,2]
[381443852,1756203039122,-882.10293333,0.00031947,30]
[381443853,1756203039132,-579.06340537,0.00031947,5]
[381443854,1756203039141,-6409.8759588,0.00031947,30]
[381443855,1756203039150,-109091.20690422,0.00031947,2]
[381443856,1756203039160,-258.20860713,0.00031947,2]
[381443857,1756203039169,-151.0,0.00031947,7]
[381443858,1756203039178,-151.0,0.00031947,7]
[381443859,1756203039187,-151.0,0.00031947,7]
[381443860,1756203039196,-151.0,0.00031947,7]
[381443861,1756203039205,-151.0,0.00031947,7]
[381443862,1756203039215,-151.0,0.00031947,7]
[381443863,1756203039223,-290.118054,0.00031947,7]
[381443864,1756203039233,-151.0,0.00031947,14]
[381443865,1756203039242,-151.0,0.00031947,14]
[381443866,1756203039252,-151.0,0.00031947,14]
[381443867,1756203039262,-157.908377,0.00031947,14]
[381443868,1756203039272,-151.0,0.0003195,7]
[381443869,1756203039281,-151.0,0.0003195,7]
[381443870,1756203039291,-151.0,0.0003195,7]
[381443871,1756203039300,-151.0,0.0003195,7]
[381443872,1756203039309,-151.0,0.0003195,7]
[381443873,1756203039318,-151.0,0.0003195,7]
[381443874,1756203039328,-151.0,0.0003195,7]
[381443875,1756203039337,-45623.0650605,0.00031951,2]
[381443876,1756203039346,-151.0,0.00031951,7]
[381443877,1756203039356,-151.0,0.00031951,7]
[381443878,1756203039364,-151.0,0.00031951,7]
[381443879,1756203039374,-151.0,0.00031951,7]
[381443880,1756203039384,-151.0,0.00031951,7]
[381443881,1756203039393,-151.0,0.00031951,7]
[381443882,1756203039403,-265.92023354,0.00031952,2]
[381443883,1756203039412,-500.0,0.00031953,2]
[381443884,1756203039422,-29149.7219936,0.0003198,2]
[381443885,1756203039431,-151.0,0.0003199,7]
[381443886,1756203039441,-58299.4439872,0.0003199,2]
[381443887,1756203039450,-50475.43,0.00032,7]
[381443888,1756203039459,-3029.23,0.00032,7]
[381443889,1756203039468,-7029.47,0.00032,2]
[381443890,1756203039477,-1332.66,0.00032,7]
[381443891,1756203039487,-151.857407,0.00032,7]
[381443892,1756203039496,-216.09257821,0.00032,7]
[381443893,1756203039505,-500.0,0.00032227,2]
[381443894,1756203039514,-600.0,0.00032587,20]
[381443895,1756203039523,-199.0,0.00032776,120]
[381443896,1756203039532,-1136.79,0.00032876,120]
[381443897,1756203039542,-501.63845286,0.00033036,5]
[381443898,1756203039551,-500.0,0.00033036,5]
[381443899,1756203039560,-500.0,0.00033036,5]
[381443900,1756203039570,-500.0,0.00033036,5]
[381443901,1756203039579,-501.69540438,0.00033036,5]
[381443902,1756203039592,-500.0,0.00033036,5]
[381443903,1756203039602,-500.0,0.00033036,5]
[381443904,1756203039610,-501.28334109,0.00033182,5]
[381443905,1756203039620,-200.55715753,0.00033267,5]
[381443906,1756203039632,-500.0,0.00033267,5]
[381443907,1756203039642,-158.46808204,0.00033267,5]
[381443908,1756203039651,-160.58030128,0.00033267,5]
[381443909,1756203039661,-181.70023061,0.00033267,5]
[381443910,1756203039670,-500.0,0.00033267,5]
[381443911,1756203039682,-504.55099899,0.00033267,5]
[381443912,1756203039691,-500.0,0.00033267,5]
[381443913,1756203039700,-500.0,0.00033267,5]
[381443914,1756203039709,-500.0,0.00033267,5]
[381443915,1756203039718,-453.46933769,0.00033267,3]
[381443916,1756203039727,-259.5060444,0.00033267,5]
[381443917,1756203039737,-500.0,0.00033267,5]
[381443918,1756203039746,-500.0,0.00033267,5]
[381443919,1756203039755,-500.0,0.00033267,5]
[381443920,1756203039764,-500.0,0.00033267,5]
[381443921,1756203039774,-471.62,0.0003331,3]
[381443922,1756203039783,-29149.7219936,0.00033337,2]
[381443923,1756203039793,-501.52409919,0.00033357,5]
[381443924,1756203039802,-500.63181945,0.00033357,5]
[381443925,1756203039812,-500.0,0.00033357,5]
[381443926,1756203039821,-517.86461288,0.00033357,5]
[381443927,1756203039831,-501.9130808,0.00033357,5]
[381443928,1756203039840,-500.85200101,0.00033357,5]
[381443929,1756203039849,-502.89963623,0.00033357,5]
[381443930,1756203039859,-500.0,0.00033357,5]
[381443931,1756203039869,-500.0,0.00033357,5]
[381443932,1756203039879,-500.0,0.00033357,5]
[381443933,1756203039888,-445.06481498,0.00033357,5]
[381443934,1756203039898,-500.0,0.00033357,5]
[381443935,1756203039907,-500.0,0.00033357,5]
[381443936,1756203039916,-1136.79,0.00033424,120]
[381443937,1756203039926,-500.0,0.00033462,5]
[381443938,1756203039935,-502.83892234,0.00033462,5]
[381443939,1756203039945,-500.0,0.00033462,5]
[381443940,1756203039954,-501.85733234,0.00033462,5]
[381443941,1756203039964,-500.0,0.00033462,5]
[381443942,1756203039973,-500.0,0.00033462,5]
[381443943,1756203039982,-473.30564536,0.00033462,5]
[381443944,1756203039991,-501.80461637,0.00033462,5]
[381443945,1756203039999,-500.0,0.00033462,5]
[381443946,1756203040009,-500.00392088,0.0003348,5]
[381443947,1756203040019,-500.0,0.00033583,5]
[381443948,1756203040028,-500.0,0.00033583,5]
[381443949,1756203040039,-520.92936452,0.00033583,5]
[381443950,1756203040048,-502.14782863,0.00033583,5]
[381443951,1756203040057,-1000.0,0.00033584,5]
[381443952,1756203040067,-500.0,0.00033584,5]
[381443953,1756203040076,-494.94919736,0.00033688,2]
[381443954,1756203040085,-212.608947,0.00033815,5]
[381443955,1756203040095,-500.97657342,0.00033815,5]
[381443956,1756203040105,-500.0,0.00033815,5]
[381443957,1756203040114,-502.88159123,0.00033815,5]
[381443958,1756203040123,-468.01309585,0.00033815,5]
[381443959,1756203040133,-1000.0,0.00033815,5]
[381443960,1756203040143,-500.0,0.00033905,5]
[381443961,1756203040153,-1000.0,0.00033905,5]
[381443962,1756203040162,-500.0,0.00033905,5]
[381443963,1756203040171,-1000.0,0.00033905,5]
[381443964,1756203040181,-1000.0,0.00033905,5]
[381443966,1756203040190,-1136.79,0.00033972,120]
[381443968,1756203040199,-1000.0,0.00034009,5]
[381443969,1756203040208,-365.60859336,0.00034009,5]
[381443971,1756203040217,-500.0,0.00034009,5]
[381443972,1756203040227,-1000.0,0.00034009,5]
[381443973,1756203040237,-501.14570767,0.00034131,5]
[381443974,1756203040246,-502.82121232,0.00034131,5]
[381443975,1756203040255,-200.0,0.00034344,3]
[381443976,1756203040264,-560.0,0.00034344,2]
[381443977,1756203040273,-320.0,0.00034344,3]
[381443978,1756203040283,-320.0,0.00034344,3]
[381443979,1756203040292,-200.0,0.00034344,3]
[381443980,1756203040301,-2240.0,0.00034351,3]